Cogmind - Beta 15 @@@ ROGUE MODE // 2025.10.09 @ 22:44:41 Player: DietSnapple Result: Destroyed by H-61 Shepherd with Heavy Assault Cannon Performance ------------- Evolutions (2) 1000 Regions Visited (4) 800 Robots Destroyed (39) 195 Value Destroyed (1072) 1072 Prototype IDs (1) 20 Alien Tech Used (0) 0 Bonus (0) 0 TOTAL SCORE: 3087 Bonus ------- None Cogmind --------- Core Integrity 0/550 Matter 258/300 Energy 100/100 System Corruption 0% Temperature Cool (0) Movement Core (50) Location -8/Materials Parts ------- > --- POWER (1) -------- (None) > --- PROPULSION (3) --- (None) > --- UTILITY (5) ------ (None) > --- WEAPON (2) ------- (None) > --- INVENTORY (5) ---- Light Nuclear Core Makeshift Power Source Terrain Scanner ECM Suite Hacking Suite Peak State ------------ > --- POWER ------------ Subdweller Power Source > --- PROPULSION ------- Compact Wheel Subdweller Monowheel > --- UTILITY ---------- Medium Storage Unit Subdweller Optics Light Armor Plating > --- WEAPON ----------- Slug Cannon Ripper > --- INVENTORY -------- Makeshift Power Source Heat Sink Terrain Scanner ECM Suite Hacking Suite Subdweller Machine Gun [Rating: 18] Favorites ----------- Power Ion Engine Engine Ion Engine Propulsion Compact Wheel Treads Light Treads Wheel Compact Wheel Utility Small Storage Unit Device Subdweller Optics Storage Small Storage Unit Protection Light Armor Plating Weapon Assault Rifle Ballistic Gun Assault Rifle Ballistic Cannon Light Cannon Launcher Grenade Launcher Slashing Weapon Ripper Build | -11 -10 -10 -10 -8 ------- Run | Yrd Mat Min Sub Mat Slots Evolved 4 | . . . . 4 Power . | . . . . . Propulsion 1 | . . . . 1 Utility 3 | . . . . 3 Weapon . | . . . . . Parts Attached 31 | 6 9 1 8 7 Power 7 | 1 1 1 2 2 Engine 7 | 1 1 1 2 2 Core . | . . . . . Reactor . | . . . . . Propulsion 6 | 2 2 . 2 . Treads 2 | 2 . . . . Leg . | . . . . . Wheel 4 | . 2 . 2 . Hover . | . . . . . Flight . | . . . . . Utility 4 | 1 1 . . 2 Device 1 | . . . . 1 Storage 2 | 1 1 . . . Processor . | . . . . . Hackware . | . . . . . Protection 1 | . . . . 1 Artifact . | . . . . . Weapon 14 | 2 5 . 4 3 Energy Gun . | . . . . . Energy Cannon . | . . . . . Ballistic Gun 10 | 2 4 . 1 3 Ballistic Cannon 2 | . 1 . 1 . Launcher 1 | . . . 1 . Special Weapon . | . . . . . Impact Weapon . | . . . . . Slashing Weapon 1 | . . . 1 . Piercing Weapon . | . . . . . Special Melee Weapon . | . . . . . Unidentified Prototypes 1 | . . . . 1 Parts Lost 15 | . 4 1 2 8 Power 2 | . . 1 . 1 Propulsion 4 | . 2 . . 2 Utility 2 | . . . . 2 Weapon 7 | . 2 . 2 3 Highest Loss Streak 5 | . 2 1 1 5 To Critical Strikes 1 | . . . 1 . Average Backups 6 | 2 5 9 9 5 Power 1 | . 1 1 . 1 Propulsion . | 1 . . . . Utility 2 | . 1 4 5 3 Weapon 2 | . 2 3 2 . Tool/Special . | . . . . . Unused Backups 11 | . 2 . 2 7 Power 3 | . . . . 3 Propulsion . | . . . . . Utility 5 | . . . 1 4 Weapon 3 | . 2 . 1 . Tool/Special . | . . . . . Average Slot Usage (%) 76 | . 80 80 94 47 Engine 11 | . 14 9 14 5 Treads 6 | . 11 . . . Wheel 13 | . 12 14 23 10 Device 1 | . . . . 5 Storage 17 | . 14 28 28 8 Ballistic Gun 18 | . 24 14 7 9 Ballistic Cannon 4 | . 2 14 3 . Launcher 1 | . . . 9 . Slashing Weapon 1 | . . . 6 4 Peak Build Rating 18 | 6 7 7 16 18 Average Rating 7 | 4 5 6 11 13 On Entrance 7 | . 6 7 7 16 Naked Turns 50 | . . . . 50 Heaviest Build 30 | 14 23 23 30 30 Greatest Support 40 | 40 40 16 36 36 Greatest Overweight (x) 7 | . 1 1 1 7 Average Overweight (x) . | . . 1 . . Largest Inventory Capacity 10 | 8 10 10 10 10 Average Capacity 8 | 6 8 10 10 9 Most Carried 10 | 4 8 10 10 8 Average Carried 6 | 2 5 9 9 6 Final Capacity 10 | 8 10 10 10 5 Final Carried 10 | 4 8 10 8 5 Class Distribution -------------------- 88% | Mutant 11% | Scavenger-Mutant Dominant Class ---------------- Mutant | -10/Materials Mutant | -10/Mines Mutant | -10/Subcaves Mutant | -8/Materials Resources | -11 -10 -10 -10 -8 ----------- Run | Yrd Mat Min Sub Mat Matter Collected 1244 | 234 408 102 87 413 Remotely . | . . . . . Salvage Created 1116 | . 444 125 162 385 Parts 73 | . 36 10 19 8 Haulers Intercepted 1 | . 1 . . . Recyclers Shooed 1 | . 1 . . . Parts Field Recycled . | . . . . . Retrieved Matter . | . . . . . Parts Self-Destructed . | . . . . . Prevented . | . . . . . Kills | -11 -10 -10 -10 -8 ------- Run | Yrd Mat Min Sub Mat Combat Hostiles Destroyed 36 | . 16 5 7 8 Guns 27 | . 15 2 2 8 Cannons 6 | . 1 3 2 . AOE 3 | . . . 3 . Classes Destroyed 7 | . 4 1 1 1 Hauler 1 | . 1 . . . Operator 2 | . 2 . . . Swarmer 15 | . 12 3 . . Grunt 10 | . 4 . . 6 Sentry 3 | . . 2 . 1 Hunter 1 | . . . . 1 Subdweller 7 | . . . 7 . Best Kill Streak 5 | . 4 3 3 5 Combat Bots Only 5 | . 4 3 3 5 Max Kills in Single Turn 1 | . 1 1 1 1 Gunslinging . | . . . . . Exploded 1 | . . . 1 . Melee . | . . . . . Uniques/NPCs Destroyed . | . . . . . Combat | -11 -10 -10 -10 -8 -------- Run | Yrd Mat Min Sub Mat Hostile Shots Fired 306 | . 122 24 25 135 Missed 90 | . 37 6 7 40 Hits 216 | . 85 18 18 95 Projectile 216 | . 85 18 18 95 AOE 1 | . . . . 1 Critical Strikes 7 | . . 1 1 5 Damage Taken 2814 | . 736 240 447 1391 Core 838 | . 104 6 139 589 Absorbed by Shields . | . . . . . Core Remaining (%) 50 | 100 . . . . Volleys Fired 131 | . 59 13 24 35 Largest 2 | . 2 2 2 2 Hottest 60 | . 50 50 60 50 Shots Fired 225 | . 108 26 35 56 Gun 181 | . 98 13 14 56 Cannon 33 | . 10 13 10 . Launcher 11 | . . . 11 . Special . | . . . . . Kinetic 214 | . 108 26 24 56 Thermal . | . . . . . Explosive 11 | . . . 11 . Electromagnetic . | . . . . . Robot Hit Streak 7 | . 6 6 5 7 Robot Miss Streak 4 | . 4 4 2 3 Penetration Max . | . . . . . Secondary Targets 3 | . 1 . . 2 Max Gunslinging Chain 1 | . 1 . . 1 Shots Hit Robots 127 | . 46 15 18 48 Core Hits 62 | . 25 7 12 18 Critical Kills 1 | . . . 1 . Critical Parts Destroyed . | . . . . . Critical Strikes 3 | . . . 3 . Destroy 3 | . . . 3 . Melee Attacks 24 | . . . 10 14 Impact . | . . . . . Slashing 24 | . . . 10 14 Piercing . | . . . . . Sneak Attacks . | . . . . . Combat Hostiles . | . . . . . Follow-up Attacks . | . . . . . Damage Inflicted 2434 | . 587 236 658 953 Guns 1417 | . 567 115 48 687 Cannons 329 | . 17 109 203 . Explosions 372 | . . . 372 . Melee 301 | . . . 35 266 Ramming 15 | . 3 12 . . Kinetic 1746 | . 584 224 251 687 Thermal . | . . . . . Explosive 372 | . . . 372 . Electromagnetic . | . . . . . Impact . | . . . . . Slashing 301 | . . . 35 266 Piercing . | . . . . . Highest Corruption . | . . . . . Average Corruption . | . . . . . Corruption Purged . | . . . . . Corruption Blocked . | . . . . . Overload Shots . | . . . . . Overflow Damage 1 | . . . . 1 Projectiles . | . . . . . Explosions . | . . . . . Melee 1 | . . . . 1 Knockbacks 3 | . . . 3 . Impact . | . . . . . Kinetic 3 | . . . 3 . Secondary . | . . . . . Self-Inflicted Damage 45 | . . 5 40 . Shots 2 | . . . 2 . Rammed 3 | . 1 2 . . Targets Rammed 3 | . 1 2 . . Kicked . | . . . . . Crushed . | . . . . . Highest Temperature 223 | . . 29 . 223 Average Temperature 86 | . . 20 . 95 Received Heat Transfer 714 | . 114 63 60 477 Siege Activations . | . . . . . Martial Activations . | . . . . . Shielding Activations . | . . . . . Robots Disrupted . | . . . . . Combat Hostiles . | . . . . . Robots Corrupted . | . . . . . Combat Hostiles . | . . . . . Parts Fried . | . . . . . Impact Corruptions . | . . . . . Robots Melted . | . . . . . Combat Hostiles . | . . . . . Parts Melted . | . . . . . Heat Transferred . | . . . . . Parts Sabotaged . | . . . . . Parts Stolen . | . . . . . Parts Stripped . | . . . . . Power Chain Reactions . | . . . . . Alert | -11 -10 -10 -10 -8 ------- Run | Yrd Mat Min Sub Mat Maximum Alert Level . | . . . . . Low Security (%) 100 | 100 100 100 . 100 Level 1 . | . . . . . Level 2 . | . . . . . Level 3 . | . . . . . Level 4 . | . . . . . Level 5 . | . . . . . High Security . | . . . . . Max Security . | . . . . . Peak Influence 133 | . 133 80 . 110 Initial 13 | . . 13 . . Average 43 | . 50 31 . 44 Influence Increases 790 | . 450 140 . 200 Destroy 0b10 Robot/C 580 | . 320 100 . 160 Destroy 0b10 Robot/NC 15 | . 15 . . . Destroy Leader 112 | . 62 10 . 40 Successful Hack 6 | . 6 . . . Destroy Structure 2 | . 2 . . . Lose Combat Pursuer 75 | . 45 30 . . Influence Decreases 730 | . 414 156 20 140 Entered New Map 34 | . . 23 11 . Time Decay 597 | . 374 123 . 100 Lost Part 99 | . 40 10 9 40 Squads Dispatched 6 | . 2 . . 4 Investigation . | . . . . . Extermination . | . . . . . Reinforcement 6 | . 2 . . 4 Assault . | . . . . . Garrison . | . . . . . Intercept . | . . . . . Searches Triggered . | . . . . . Construction Impeded . | . . . . . Haulers Reinforced . | . . . . . Active Scanning Responses . | . . . . . Cargo Convoy Interrupts . | . . . . . Stealth | -11 -10 -10 -10 -8 --------- Run | Yrd Mat Min Sub Mat Distress Signals 4 | . 2 . . 2 Communications Jammed . | . . . . . Distress Signals . | . . . . . Times Spotted 73 | . 35 7 5 26 Peak Tracking Total 12 | . 6 3 2 12 Tactical Retreats 2 | . 1 1 . . Traps | -11 -10 -10 -10 -8 ------- Run | Yrd Mat Min Sub Mat Traps Triggered . | . . . . . Indirectly . | . . . . . Trap Hack Attempts . | . . . . . Triggered . | . . . . . Disarmed . | . . . . . Reprogrammed . | . . . . . Reused . | . . . . . Traps Extracted . | . . . . . Installed . | . . . . . Triggered . | . . . . . Machines | -11 -10 -10 -10 -8 ---------- Run | Yrd Mat Min Sub Mat Machines Disabled . | . . . . . Max in Single Turn . | . . . . . Garrison Access 1 | . . . . 1 Machines Repaired . | . . . . . Machines Dismantled . | . . . . . Machines Sabotaged . | . . . . . Overloaded Fab Kills . | . . . . . Hacking | -11 -10 -10 -10 -8 --------- Run | Yrd Mat Min Sub Mat Machines Accessed 3 | . 2 . . 1 Terminals 2 | . 2 . . . Fabricators . | . . . . . Repair Stations . | . . . . . Recycling Units . | . . . . . Scanalyzers . | . . . . . Garrison Access 1 | . . . . 1 Total Hacks 5 | . 4 . . 1 Successful 4 | . 3 . . 1 Failed 1 | . 1 . . . Catastrophic . | . . . . . Database Lockouts . | . . . . . Manual 4 | . 4 . . . Terminals 4 | . 4 . . . Fabricators . | . . . . . Repair Stations . | . . . . . Recycling Units . | . . . . . Scanalyzers . | . . . . . Garrison Access 1 | . . . . 1 Terminal Hacks 1 | . 1 . . . Hauler Manifests 1 | . 1 . . . Fabricator Hacks . | . . . . . Repair Station Hacks . | . . . . . Recycling Unit Hacks . | . . . . . Scanalyzer . | . . . . . Garrison Access Hacks 1 | . . . . 1 Seal Access 1 | . . . . 1 Unauthorized Hacks 2 | . 2 . . . Terminals 2 | . 2 . . . Botnet 1 | . 1 . . . Skim 1 | . 1 . . . Fabricators . | . . . . . Repair Stations . | . . . . . Recycling Units . | . . . . . Scanalyzers . | . . . . . Garrison Access . | . . . . . Data Cores Recovered . | . . . . . Used . | . . . . . Hacking Detections 1 | . 1 . . . Full Trace Events . | . . . . . Feedback Events . | . . . . . Feedback Blocked . | . . . . . Robot Schematics Acquired . | . . . . . Robots Built . | . . . . . Authchips . | . . . . . Time . | . . . . . Total Robot Build Rating . | . . . . . Part Schematics Acquired . | . . . . . Parts Built . | . . . . . Authchips . | . . . . . Time . | . . . . . Total Part Build Rating . | . . . . . Parts Repaired . | . . . . . Time . | . . . . . Parts Recycled . | . . . . . Recycled Matter . | . . . . . Retrieved Matter . | . . . . . Retrieved Components . | . . . . . Parts Scanalyzed . | . . . . . Part Schematics Acquired . | . . . . . Parts Damaged . | . . . . . Bothacking | -11 -10 -10 -10 -8 ------------ Run | Yrd Mat Min Sub Mat Used RIF Installer . | . . . . . Robots Hacked . | . . . . . Non-combat . | . . . . . Combat . | . . . . . Robot Hacks Applied . | . . . . . Relay Couplers Released . | . . . . . Fabnet Peak Effective % . | . . . . . Robots Rewired . | . . . . . Allies Hacked . | . . . . . Hacks Repelled . | . . . . . Allies | -11 -10 -10 -10 -8 -------- Run | Yrd Mat Min Sub Mat Total Allies . | . . . . . Largest Group . | . . . . . Highest-Rated Group . | . . . . . Highest-Rated Ally . | . . . . . Total Orders . | . . . . . Ally Attacks . | . . . . . Total Damage . | . . . . . Kills . | . . . . . Allies Corrupted . | . . . . . Allies Melted . | . . . . . Intel | -11 -10 -10 -10 -8 ------- Run | Yrd Mat Min Sub Mat Active Infowar (turns) 230 | . . . . 230 Optics 230 | . . . . 230 Robot Analysis Total . | . . . . . Derelict Logs Recovered 1 | . . . 1 . Drone Launches . | . . . . . Drone Recoveries . | . . . . . Exploration | -11 -10 -10 -10 -8 ------------- Run | Yrd Mat Min Sub Mat Turns Passed 2004 | 113 1028 294 220 349 Spaces Moved 1287 | 66 655 216 109 241 Core 102 | 4 . . . 98 Treads 250 | 62 188 . . . Legs . | . . . . . Wheels 935 | . 467 216 109 143 Hover . | . . . . . Flight . | . . . . . Fastest Speed 50 | 50 90 115 105 50 Average Speed 110 | 153 114 115 107 86 Slowest Speed 400 | 160 160 115 115 400 Overloaded Moves . | . . . . . Propulsion Burnouts . | . . . . . Robots Hopped . | . . . . . Potential Cave-ins . | . . . . . Cave-ins Triggered . | . . . . . Exploration Rate (%) 29 | 4 81 23 9 31 Regions Visited 4 Branch Regions 2 Pre-discovered Areas 1 | . . . 1 . Known Exits Taken . | . . . . . Unknown Exits Taken 4 | 1 1 1 1 . Scrap Searched 1 | . . 1 . . Spaces Dug . | . . . . . Terrain Destroyed 48 | . . . 48 . Melee . | . . . . . Projectile 1 | . . . 1 . AOE 47 | . . . 47 . Terrain Rammed . | . . . . . Walls Destroyed . | . . . . . Machines Disabled . | . . . . . Actions | -11 -10 -10 -10 -8 --------- Run | Yrd Mat Min Sub Mat Total 1626 | 75 826 234 165 326 Wait 114 | . 88 1 4 21 Move 1283 | 65 654 215 108 241 Hop . | . . . . . Pick Up 23 | 4 9 2 4 4 Fast Attach 11 | 6 2 1 1 1 Attach 8 | . 2 . 2 4 Detach 1 | . . . . 1 Swap 12 | . 5 . 5 2 Drop 16 | . 6 . 7 3 Fire 131 | . 59 13 24 35 Melee 24 | . . . 10 14 Ram 2 | . . 2 . . Kick . | . . . . . Crush 1 | . 1 . . . Escape Stasis . | . . . . . Rewire . | . . . . . Trap . | . . . . . Miscellaneous . | . . . . . Route ------- -11/Scrapyard -10/Materials (discovered 3 exits: [*Mat x2] / [*Min]) -10/Mines -10/Subcaves -8/Materials (discovered 1 exit: [*Fac]) History --------- Turn | Location | Event 36 | -11/Scrapyard | Discovered new exit (range 15) 114 | -11/Scrapyard | Entered Materials 305 | -10/Materials | Build established: Mutant 604 | -10/Materials | Discovered new exit (range 14) 645 | -10/Materials | Discovered new exit (range 15) 731 | -10/Materials | Discovered new exit (range 16) 1142 | -10/Materials | Entered Mines 1164 | -10/Mines | Met a Derelict bent on vengeance 1357 | -10/Mines | A weapon hastily lodged in a ceiling crevice suddenly fell to the ground 1383 | -10/Mines | Discovered new exit (range 9) 1436 | -10/Mines | Entered Subcaves 1460 | -10/Subcaves | Core integrity fell below 50% 1519 | -10/Subcaves | Shifting Twisted Machinery released Mak. Power Source 1554 | -10/Subcaves | Shifting Twisted Machinery released Slug Cannon 1617 | -10/Subcaves | Core integrity fell below 20% 1642 | -10/Subcaves | Learned location of Mines (-8) 1643 | -10/Subcaves | Discovered new exit (range 11) 1656 | -10/Subcaves | Entered Materials 1656 | -8/Materials | Evolved 4 slots: Propulsion x1, Utility x3 1852 | -8/Materials | Lost 5 parts (1p1n1u2w) 1898 | -8/Materials | Core integrity fell below 50% 1955 | -8/Materials | Released all parts (3) 1993 | -8/Materials | Core integrity fell below 20% 2002 | -8/Materials | Discovered new exit (range 8) 2005 | -8/Materials | Destroyed by H-61 Shepherd with Heavy Assault Cannon Last Messages --------------- 01933_ Acquired 43 matter. 01936_ Acquired Lgt. Nuclear Core. 01950_ Sub. Monowheel destroyed. 01955_ ALERT: Hostiles spotted, dispatching reinforcements to Terminal M006. 01955_ Released Imp. Deuterium Engine. 01955_ Released Med. Storage Unit. 01955_ Released Enh. Autogun. 01956_ Dropped Imp. Deuterium Engine. 01957_ Acquired Lgt. Nuclear Core. 01968_ K-01 Serf collects debris. 01992_ C-30 ARC bursts open, deploying its payload. 01992_ S-10 Pest unfolds itself. 01993_ K-01 Serf collects debris. 02002_ ALERT: Suspicious intruders detected, dispatching Cutter reinforcements to area. 02002_ EXIT=FOUND 02003_ Knocked back. 02003_ C-17 Slicer destroyed. 02003_ C-17 Slicer knocked back. 02004_ U-05 Engineer builds a Wall. 02004_ U-05 Engineer lays Concrete. Map ----- +----------------------------------------------------+ | ??????????????????????????????????????? | | ??????????????????????????????????????? | | ??????????????????????????????????????? | | ??????????????????????????????????????? | | ??????????????????????????????????????? | | ??????????????????????????????????????? | | ??????????????????????????????????????? | | ?????????????? ?????????????????????? | | ?????????????# ?????????????????????? | | ?????????????# ?????????????????????? | | ?????????????# ?????????????????????? | | ?????????????# #????????????????????? | | ????????#????# #????????????????????? | | ????????# ???# #???????????####?????? | | ???????##+#### #######????? #?????? | | ???????? # u # !#????? #?????? | | ??????? """ # # #???"" #?????? | | ??????# """ #? """ = ??????? | | ??????# """ """#? ??????? | | ??????? """#??""" ???????? | | ?????????? """#??""" ???????? | | ????????????# """#???"" ????????? | | ????????????## #! """#??? ????????? | | ????????????#% u #??##+########## | | ????????????# + #??# | | ????????????##@ #### | | ????????????# c s s | | ???????????# ###### s %## | | ?????????? = ? "#? | | ?????????# H %/ ### #? | | ?????????# = = #?# #? | | ?????????####+ #################?# #? | | ????????????? ?????????????????# #? | | ????????????? ?????????????????# #? | | ????????????? ?????????????????# #? | | ????????????"" ?????????????????# #? | | ????????????"" !?????????????????# #? | | ?????????????" !?????????????????# #? | | ?????????????? !?????????????????# #? | | ?????????????? ?????????????????? ?? | | ??????????????##??????????????????????? | | ??????????????????????????????????????? | | ??????????????????????????????????????? | | ??????????????????????????????????????? | | ??????????????????????????????????????? | | ??????????????????????????????????????? | | ??????????????????????????????????????? | | ??????????????????????????????????????? | | ??????????????????????????????????????? | | ??????????????????????????????????????? | +----------------------------------------------------+ Best States ------------- Heat Dissipation 31 Energy Generation 16 Energy Capacity 290 Matter Stores 300 Matter Capacity 300 Sight Range 21 Terrain Scan Density 10 Armor Coverage 150 Evasion (%) 50 Recoil Reduction 2 Item Schematics ----------------- None Robot Schematics ------------------ None Fabricated ------------ Nothing Repaired ---------- Nothing Alien Tech Used ----------------- None Achievements -------------- None Challenges ------------ None Game ------ Seed PotentialBackupDevice Manual? 0 Play Time 00:20:40 Cumulative 29.5 hours Start 2025.10.09 @ 21:31:56 End 2025.10.09 @ 22:44:41 Sessions 2 Manual Loads 0 Difficulty Rogue Special Mode None Game No. 80 Rogue 73 Adventurer 7 Explorer 0 Win Type - Total 0 Types 0/0/0/0/0/0/0/0/0/0 Lore% 6 Gallery% 27 Achievement% 27 Wizard Run 0 Options --------- Layout 0 ASCII 0 Keyboard 1 Movement Vi Keybinds 0 Fullscreen 1 Font 18/SmallcapsGlow Map View 112x50 Zoom Use 0% Tactical HUD 1 Map Filters NONE Filters NONE Steam 1 RUN: edf995e7-f286-4518-9985-83fa3b1c0ee0